[Event "Czech Youth Championship Open 2023"]
[Site "Teplice"]
[Date "2023.03.11"]
[Round "1.1"]
[White "Pressler, Tobias"]
[Black "Broz, Petr"]
[Result "0-1"]
[ECO "A02"]
[WhiteElo "2096"]
[BlackElo "1993"]
[Annotator "TA"]
[PlyCount "168"]
[EventDate "2023.03.09"]
[EventType "swiss"]
[EventCountry "CZE"]
[SourceTitle "playchess.com"]
[Source "ChessBase"]
[SourceQuality "1"]
[TimeControl "5400+30"]

{[%evp 9,168,-14,0,3,4,4,7,8,4,-1,6,-21,-16,-16,-10,-22,35,40,245,239,243,262,250,245,239,246,218,184,208,113,103,120,105,107,214,191,407,410,468,455,743,739,705,53,39,45,55,37,52,51,43,33,58,8,102,69,110,64,51,14,8,-8,17,25,20,0,0,0,0,0,0,0,0,0,0,-24,127,-67,-67,-66,-64,-364,-157,-541,-473,-450,-71,-71,-71,-71,-71,-214,-93,-95,-71,-71,-66,-66,-63,-70,-70,-70,-68,-71,-66,-72,-72,-72,-64,-64,-64,-64,-64,-64,-58,-72,-72,-72,-72,-72,-72,-72,-72,-72,-72,-72,-72,-72,-72,-72,-72,-72,-72,-72,-72,-72,0,-72,-72,-72,-72,-72,-72,-72,-72,-72,0,-72,-72,-72,-70,-72,-72,-72,-68,-72,-71,-29997,-29998,-29998,-29999]} 1. f4 {[%emt 0:00:13]} g6 {[%emt 0:01:10]} 2. Nf3 {[%emt 0:00:58]} Bg7 {[%emt 0:00:59]} 3. g3 {[%emt 0:01:00]} b6 {[%emt 0:01:50]} 4. Bg2 {[%emt 0:01:18]} Bb7 {[%emt 0:00:19]} 5. O-O {[%emt 0:00:34]} e6 {[%emt 0:01:23]} 6. d3 {[%emt 0:01:24] A02: Bird's Opening.} Ne7 {[%emt 0:02:42]} 7. e4 {[%emt 0:02:02]} O-O {[%emt 0:01:37]} 8. c3 {[%emt 0:01:17] The position is equal.} c5 {[%emt 0:02:06]} 9. Nbd2 {[%emt 0:01:39]} d6 {[%emt 0:02:42] [#]} 10. Qe1 $146 {[%emt 0:06:04]} ({Predecessor:} 10. Qe2 Nd7 11. Nh4 Qc7 12. Ndf3 Rae8 13. Bd2 f5 14. Ng5 Nc8 15. Rae1 Re7 16. exf5 exf5 {½-½ Gavrikov,V (2555)-Murey,J (2500) Zuerich op-A 16th 1992}) 10... Qc7 {[%emt 0:05:52]} 11. Nc4 {[%emt 0:07:35]} b5 {[%emt 0:09:38]} 12. Ne3 {[%emt 0:00:17]} Re8 {[%emt 0:03:46]} (12... a5 $11) 13. g4 $14 {[%emt 0:01:49]} f5 $2 {[%emt 0:01:34]} (13... Nd7 $14) 14. Ng5 $18 {[%emt 0:00:24]} Qc8 {[%emt 0:07:54]} 15. Qh4 {[%emt 0:03:29]} h6 {[%emt 0:00:19] [#]} 16. Nxe6 {[%emt 0:00:30][%mdl 576] Remove Defender} Qxe6 {[%emt 0:07:17]} 17. exf5 {[%emt 0:00:07]} Qd7 {[%emt 0:00:09]} 18. f6 {[%emt 0:06:27]} Bxg2 {[%emt 0:00:52]} 19. Nxg2 {[%emt 0:00:41]} (19. Kxg2 $18 Qc6+ 20. Kg1 Bxf6 21. Qxf6) 19... Bxf6 $16 {[%emt 0:00:35][%mdl 64] Deflection} 20. Qxf6 {[%emt 0:00:07]} Qxg4 {[%emt 0:00:23]} 21. Qxd6 {[%emt 0:01:48] f5 is the strong threat.} Nbc6 {[%emt 0:01:47]} (21... Nd7 $16) 22. f5 $18 {[%emt 0:00:41]} (22. Qxc5 $6 Qf5 23. Qxf5 Nxf5) 22... gxf5 $2 {[%emt 0:07:00]} (22... Nd8) 23. Qe6+ {[%emt 0:00:07]} (23. Qxh6 Ne5 24. Be3 Nf7 $18) (23. Bxh6 Kf7 $18) (23. Qxc5 Rad8 24. Qxb5 (24. Bxh6 Rxd3 25. Rae1 Rd5 $16) 24... Nd5 $16) 23... Kg7 {[%emt 0:01:50]} 24. Qxh6+ {[%emt 0:00:44]} (24. Bxh6+ Kh7 $18) 24... Kf7 {[%emt 0:00:14]} (24... Kg8 $142 25. Bg5 Nd8) 25. Bg5 {[%emt 0:00:16]} Rg8 {[%emt 0:01:34] Repels Rae1} 26. h4 $2 {[%emt 0:00:12]} (26. Qf6+ $18 Ke8 27. Rae1 Qxg5 28. Qxc6+ Kf7 29. Rxe7+ {[%mdl 64] Clearance} (29. Qxb5 $2 Qxg2#) 29... Kxe7 30. Re1+ (30. Qxc5+ Kf6 $14) 30... Kf8 31. Qxa8+ Kg7 32. Qd5) 26... Rg6 $14 {[%emt 0:00:49] [#]} 27. Rf4 $1 {[%emt 0:02:20]} Rxh6 {[%emt 0:01:44]} 28. Rxg4 {[%emt 0:00:04]} fxg4 {[%emt 0:00:06]} 29. Bxh6 {[%emt 0:00:05] And now Rf1+ would win.} Ne5 $1 {[%emt 0:00:30][%cal Oe7f5]} 30. Ne3 {[%emt 0:02:11] Dodges Nf5} Nxd3 {[%emt 0:06:48]} 31. Nxg4 {[%emt 0:00:54]} (31. Bg5 $14) 31... Rg8 {[%emt 0:00:07]} (31... Nf5 $11 {keeps the balance.}) 32. Bg5 $16 {[%emt 0:00:03]} Ke6 {[%emt 0:01:50]} 33. Rd1 {[%emt 0:01:13]} ({White should try} 33. a4 $16) 33... c4 $14 {[%emt 0:00:41]} 34. Rf1 {[%emt 0:00:22]} Nd5 {[%emt 0:03:00] Against Rf6+} 35. b3 {[%emt 0:02:37]} N5f4 {[%emt 0:03:39]} 36. Kh2 {[%emt 0:01:24] Inhibits Nh3.} Nd5 {[%emt 0:02:03]} 37. Kh3 {[%emt 0:01:08]} Nxc3 {[%emt 0:01:16]} 38. Rf6+ {[%emt 0:00:04]} Kd5 {[%emt 0:00:16]} 39. Ra6 {[%emt 0:00:29]} Ne4 {[%emt 0:00:29]} 40. bxc4+ {[%emt 0:02:55]} bxc4 {[%emt 0:00:23]} 41. Be3 {[%emt 0:02:42]} (41. Rxa7 {simplifies} Nxg5+ 42. hxg5 Rxg5 43. Ra5+) 41... c3 {[%emt 0:01:15][%cal Od3f2] aiming for ...Ndf2+!} 42. Ra5+ {[%emt 0:00:21]} Ndc5 $2 {[%emt 0:04:22] [#]} (42... Kc6 $11 43. Ra4 Re8) 43. Nf6+ $2 {[%emt 0:01:58]} Nxf6 $15 {[%emt 0:00:14]} 44. Rxc5+ {[%emt 0:00:04][%mdl 4096] Endgame KRB-KRN} Ke4 {[%emt 0:00:07]} 45. Bf2 {[%emt 0:00:57][%mdl 8192]} (45. Rxc3 $15 Nd5 46. Ra3 Nxe3 47. Rxa7) 45... Nd5 {[%emt 0:00:20]} (45... Kd3 $19 {and Black stays clearly on top. Threatens to win with ...Ne4.} 46. Rc6 Nh5) 46. Be1 $2 {[%emt 0:00:05]} (46. Kh2 $17) 46... Nf4+ $19 {[%emt 0:00:52]} 47. Kh2 {[%emt 0:00:20]} Nd3 $2 {[%emt 0:00:11]} (47... Rg2+ $19 48. Kh1 c2) 48. Rc4+ $17 {[%emt 0:00:05]} Kd5 {[%emt 0:00:13] Black has more active pieces.} 49. Rxc3 {[%emt 0:00:43]} Nxe1 {[%emt 0:00:04] KRN-KR} 50. Rc7 {[%emt 0:00:12] [#]} (50. Re3 $17 {was necessary.}) 50... a6 {[%emt 0:00:08]} (50... a5 $1 $19 {is more deadly. ...Nf3+ would be deadly.} 51. Re7 Nf3+ 52. Kh3 Ne5) 51. Kh3 {[%emt 0:00:08]} Nd3 {[%emt 0:00:31] Strongly threatening ...Nf4+.} 52. h5 {[%emt 0:00:19]} Nf4+ {[%emt 0:08:54]} 53. Kh4 {[%emt 0:00:16]} Rg2 {[%emt 0:00:07][%cal Of4h5]} 54. a3 {[%emt 0:00:42]} Ne6 {[%emt 0:02:58]} 55. Ra7 {[%emt 0:00:18]} Ke4 {[%emt 0:01:09]} 56. Rxa6 {[%emt 0:00:38]} Kf5 {[%emt 0:02:43]} (56... Kf4 $5 57. Kh3 $8 Re2 58. Ra4+ Kf3 $15) 57. Ra5+ {[%emt 0:00:17]} Kf4 {[%emt 0:00:08][%cal Rg2h2]} 58. Kh3 {[%emt 0:00:26] Repels Rh2+} Rg1 {[%emt 0:01:29]} (58... Rc2 $5 59. Ra4+ $8 Kf3 $15) 59. Kh2 {[%emt 0:00:10]} Rg8 {[%emt 0:00:12]} 60. Ra6 {[%emt 0:00:10]} Nd4 {[%emt 0:01:01]} 61. Rf6+ {[%emt 0:00:23]} Nf5 {[%emt 0:00:37]} 62. Rg6 {[%emt 0:00:28]} Rh8 {[%emt 0:00:07]} 63. h6 {[%emt 0:00:19]} Nxh6 {[%emt 0:00:08]} ({Of course not} 63... Rxh6+ 64. Rxh6 Nxh6 65. Kh3 $11) 64. Kg2 {[%emt 0:00:05]} Ng4 {[%emt 0:00:21]} 65. Kf1 {[%emt 0:00:30]} Rh2 {[%emt 0:00:58]} 66. Ke1 {[%emt 0:00:24]} Ne5 {[%emt 0:00:15]} 67. Rb6 {[%emt 0:00:14]} Ke3 {[%emt 0:00:55][%cal Rh2h1]} 68. Rb3+ {[%emt 0:00:06]} Nd3+ {[%emt 0:00:19]} 69. Kf1 {[%emt 0:00:04]} Rd2 {[%emt 0:00:17]} 70. Rb6 {[%emt 0:00:25]} Rc2 {[%emt 0:01:04]} 71. a4 {[%emt 0:00:54]} Nf4 {[%emt 0:00:06][%cal Rc2c1]} 72. Rb3+ {[%emt 0:00:05]} Nd3 {[%emt 0:00:02]} ({Better is} 72... Ke4 $17) 73. a5 {[%emt 0:00:09]} (73. Rb6 $1 $11) 73... Ra2 {[%emt 0:00:08]} 74. Rb5 {[%emt 0:00:05]} Kf3 {[%emt 0:00:10]} 75. Kg1 {[%emt 0:00:16]} Rg2+ {[%emt 0:01:05]} 76. Kf1 {[%emt 0:00:07]} Rf2+ {[%emt 0:00:11]} 77. Kg1 {[%emt 0:00:04] Black must now prevent Rf5+.} Rg2+ 78. Kf1 {[%emt 0:00:08]} Rc2 {[%emt 0:00:14][%cal Rc2c1]} 79. Kg1 {[%emt 0:00:32]} Rc6 {[%emt 0:01:06]} 80. Rb6 {[%emt 0:00:06]} Rc1+ {[%emt 0:00:17]} 81. Kh2 {[%emt 0:00:04]} Rc5 {[%emt 0:00:03]} 82. a6 {[%emt 0:00:18]} Nf4 {[%emt 0:00:07] ( -> ...Rh5+)} 83. a7 $2 {[%emt 0:00:20][%mdl 8192]} (83. Rb3+ $17 Kf2 84. Rb2+ Ne2 85. Kh3) 83... Rh5+ {[%emt 0:00:05]} 84. Kg1 {[%emt 0:00:04]} Ne2+ {[%emt 0:00:02] What a fight! Excellently played by Broz!   Weighted Error Value: White=0.41/Black=0.46} 0-1

[Event "Czech Youth Championship Open 2023"]
[Site "Teplice"]
[Date "2023.03.11"]
[Round "1.2"]
[White "Sadil, Antonin"]
[Black "Juracak, David"]
[Result "1/2-1/2"]
[ECO "C42"]
[WhiteElo "1683"]
[BlackElo "1820"]
[Annotator "NA RC COMBH"]
[PlyCount "108"]
[EventDate "2023.03.09"]
[EventType "swiss"]
[EventCountry "CZE"]
[SourceTitle "playchess.com"]
[Source "ChessBase"]
[SourceQuality "1"]
[TimeControl "5400+30"]

1. e4 {[%emt 0:00:09]} e5 {[%emt 0:00:04]} 2. Nf3 {[%emt 0:00:10]} Nf6 {[%emt 0:00:06]} 3. Nxe5 {[%emt 0:00:21]} d6 {[%emt 0:00:05]} 4. Nf3 {[%emt 0:00:14]} Nxe4 {[%emt 0:00:07]} 5. Nc3 {[%emt 0:00:16]} Nxc3 {[%emt 0:00:07]} 6. dxc3 {[%emt 0:00:10]} Be7 {[%emt 0:00:14]} 7. Be3 {[%emt 0:00:30]} Nc6 {[%emt 0:00:25]} 8. Qd2 {[%emt 0:00:15]} Be6 {[%emt 0:00:17]} 9. O-O-O {[%emt 0:00:39]} Qd7 {[%emt 0:00:17]} 10. Kb1 {[%emt 0:00:51]} a6 {[%emt 0:00:49]} 11. Ng5 {[%emt 0:00:28]} Bxg5 {[%emt 0:00:15]} 12. Bxg5 {[%emt 0:00:14]} f6 {[%emt 0:00:01]} 13. Bf4 {[%emt 0:02:15]} O-O-O {[%emt 0:00:14]} 14. Bd3 {[%emt 0:01:32]} Ne5 {[%emt 0:03:36]} 15. Rhe1 {[%emt 0:02:21]} Nxd3 {[%emt 0:00:59]} 16. Qxd3 {[%emt 0:01:04]} Bxa2+ {[%emt 0:00:23]} 17. Kxa2 {[%emt 0:02:45]} Qa4+ {[%emt 0:00:13]} 18. Kb1 {[%emt 0:00:08]} Qxf4 {[%emt 0:00:05]} 19. Re7 {[%emt 0:02:48]} Rd7 {[%emt 0:01:14]} 20. Qe2 {[%emt 0:03:14]} Rxe7 {[%emt 0:04:10]} 21. Qxe7 {[%emt 0:00:11]} Qg4 {[%emt 0:00:05]} 22. Rd3 {[%emt 0:03:39]} Qd7 {[%emt 0:02:37]} 23. Re3 {[%emt 0:05:09]} c6 {[%emt 0:03:00]} 24. c4 {[%emt 0:05:17]} Rd8 {[%emt 0:00:40]} 25. Qe4 {[%emt 0:01:55]} h6 {[%emt 0:00:37]} 26. Qg6 {[%emt 0:03:49]} Rf8 {[%emt 0:03:03]} 27. Qg3 {[%emt 0:02:20]} f5 {[%emt 0:02:11]} 28. f4 {[%emt 0:08:02]} Rf7 {[%emt 0:04:31]} 29. Qe1 {[%emt 0:02:59]} Kd8 {[%emt 0:01:30]} 30. Rd3 {[%emt 0:10:50]} Re7 {[%emt 0:02:48]} 31. Qd2 {[%emt 0:00:10]} Kc7 {[%emt 0:00:40]} 32. Qa5+ {[%emt 0:01:38]} Kc8 {[%emt 0:00:19]} 33. Qd2 {[%emt 0:01:12]} Re6 {[%emt 0:00:33]} 34. c5 {[%emt 0:01:02]} d5 {[%emt 0:00:10]} 35. c4 {[%emt 0:00:55]} Qe7 {[%emt 0:01:49]} 36. cxd5 {[%emt 0:00:30]} cxd5 {[%emt 0:01:25]} 37. Rxd5 Re1+ {[%emt 0:07:07]} 38. Ka2 {[%emt 0:02:15]} Qe6 {[%emt 0:00:16]} 39. Ka3 {[%emt 0:02:58]} Ra1+ {[%emt 0:00:42]} 40. Kb4 {[%emt 0:04:01]} Kc7 {[%emt 0:05:40]} 41. Re5 {[%emt 0:01:53]} Qc6 {[%emt 0:02:44]} 42. Qd6+ {[%emt 0:00:51]} Qxd6 {[%emt 0:00:06]} 43. cxd6+ {[%emt 0:00:10]} Kxd6 {[%emt 0:00:03]} 44. Rxf5 {[%emt 0:00:14]} Rg1 {[%emt 0:00:29]} 45. g3 {[%emt 0:01:13]} Rg2 {[%emt 0:01:01]} 46. Ka3 {[%emt 0:01:26]} Rxh2 {[%emt 0:00:22]} 47. Rf7 {[%emt 0:00:13]} g5 {[%emt 0:00:09]} 48. fxg5 {[%emt 0:00:41]} hxg5 {[%emt 0:00:23]} 49. Rg7 {[%emt 0:00:29]} Rg2 {[%emt 0:00:33]} 50. Rxg5 {[%emt 0:00:10]} Ke6 {[%emt 0:01:42]} 51. Rg7 {[%emt 0:00:19]} Kd5 {[%emt 0:00:38]} 52. b3 {[%emt 0:01:15]} Kc5 {[%emt 0:01:03]} 53. Rxb7 {[%emt 0:00:38]} Rxg3 {[%emt 0:00:23]} 54. Rf7 {[%emt 0:01:15]} Rg4 {[%emt 0:00:13]} 1/2-1/2

[Event "Czech Youth Championship Open 2023"]
[Site "Teplice"]
[Date "2023.03.11"]
[Round "1.3"]
[White "Mrkvan, Frantisek"]
[Black "Hlavac, Rudolf"]
[Result "0-1"]
[ECO "B24"]
[WhiteElo "1727"]
[BlackElo "1985"]
[Annotator "TA"]
[PlyCount "105"]
[EventDate "2023.03.09"]
[EventType "swiss"]
[EventCountry "CZE"]
[SourceTitle "playchess.com"]
[Source "ChessBase"]
[SourceQuality "1"]
[TimeControl "5400+30"]

{[%evp 9,105,0,43,0,58,18,40,30,40,41,25,39,55,33,50,0,62,35,30,24,75,31,38,41,56,38,41,33,46,33,50,45,47,10,20,14,35,-31,16,-103,0,0,55,-52,14,-57,43,47,756,787,1059,0,65,-67,8,-82,-91,-91,-90,-108,-91,-234,-241,-244,-24,-166,-178,-554,-530,-492,-351,-559,-576,-693,-473,-461,-428,-680,-662,-1100,-703,-29983,-29983,-29983,-5369,-29993,-29994,-29994,-29995,-29995,-29987,-29996,-29997,-29997,-29998,-29998,-29999,-29999]} 1. e4 {[%emt 0:00:06]} c5 {[%emt 0:00:37]} 2. Nc3 {[%emt 0:00:44]} Nc6 {[%emt 0:00:15]} 3. Bb5 {[%emt 0:00:37]} Na5 {[%emt 0:01:16]} 4. Be2 {[%emt 0:11:04]} Nc6 {[%emt 0:05:46]} 5. Bb5 {[%emt 0:01:08]} Na5 {[%emt 0:01:58]} 6. Be2 {[%emt 0:00:40] B23: Closed Sicilian: Lines without g3.} a6 {[%emt 0:00:08]} (6... Nc6 $11) 7. f4 {[%emt 0:03:17]} b5 {[%emt 0:00:38]} 8. Nf3 {[%emt 0:05:19] White is slightly better.} Bb7 {[%emt 0:00:39]} 9. d3 {[%emt 0:00:13]} e6 {[%emt 0:03:23]} 10. O-O Be7 {[%emt 0:03:00] [#]} 11. Qe1 $146 {[%emt 0:06:42]} ({Predecessor:} 11. Be3 Nf6 12. Qe1 O-O 13. Ng5 d5 14. e5 Nd7 15. Nd1 d4 16. Bd2 Nc6 17. Qg3 Bxg5 18. fxg5 Ncxe5 19. Nf2 {0-1 Mannikko,K-Varonen,M (2025) FIN WS/35 email 2013}) 11... Nc6 {[%emt 0:01:54]} 12. Kh1 {[%emt 0:05:59]} (12. Qg3 $14) 12... Nd4 {[%emt 0:05:05]} (12... d5 $11) 13. Nxd4 {[%emt 0:13:40]} cxd4 {[%emt 0:00:22]} 14. Nb1 {[%emt 0:00:03]} Qc7 {[%emt 0:03:33]} (14... Rc8 $11 {remains equal.}) 15. c3 {[%emt 0:01:04]} dxc3 {[%emt 0:00:37]} 16. Nxc3 {[%emt 0:00:22][%cal Bb1c3,Bc3d1,Bd1e3][%mdl 32]} b4 {[%emt 0:06:47]} 17. Nd1 {[%emt 0:03:47]} Nf6 {[%emt 0:07:11]} 18. b3 {[%emt 0:03:40]} O-O {[%emt 0:02:13]} 19. Bb2 {[%emt 0:00:19]} Rac8 {[%emt 0:02:36]} 20. Ne3 {[%emt 0:04:51]} a5 {[%emt 0:04:18]} 21. h3 {[%emt 0:04:24]} d6 {[%emt 0:04:52]} 22. Bf3 {[%emt 0:01:46]} Qb6 {[%emt 0:05:16]} 23. g4 {[%emt 0:05:08]} (23. f5 $14) 23... Rfd8 {[%emt 0:04:49]} (23... Nd7 $15) 24. Qd2 {[%emt 0:03:14]} (24. g5 $11 {keeps the balance.} Nd7 25. d4) 24... Ne8 {[%emt 0:04:51]} (24... d5 $17 {[%cal Rd5e4]} 25. exd5 Nxd5) 25. g5 $11 {[%emt 0:04:53]} Nc7 {[%emt 0:04:07]} ({Better is} 25... d5 $11 26. exd5 exd5) 26. h4 {[%emt 0:01:08]} (26. Qf2 $14) 26... Nb5 {[%emt 0:00:20]} ({Black should play} 26... d5 $15 27. e5 Nb5) 27. Rac1 {[%emt 0:02:33]} (27. f5 $11) 27... Qa6 {[%emt 0:07:27]} (27... Rxc1 $15 28. Rxc1 d5 29. exd5 Nc3) 28. f5 $14 {[%emt 0:02:12]} exf5 $2 {[%emt 0:01:38][%mdl 8192]} (28... Rxc1 $14 29. Rxc1 Nc3) 29. Nxf5 $18 {[%emt 0:00:12]} Bf8 {[%emt 0:00:08]} 30. Qe3 $2 {[%emt 0:02:23]} ({White should try} 30. Nh6+ $18 gxh6 31. gxh6) 30... d5 {[%emt 0:01:17]} (30... Nc3 $11) 31. e5 {[%emt 0:09:34]} (31. Rxc8 $14 Bxc8 32. Qf4) 31... Qe6 {[%emt 0:03:34]} (31... d4 $15 32. Qf4 Bxf3+ 33. Rxf3 (33. Qxf3 Rxc1 34. Bxc1 Qe6 $17) 33... Rxc1+ 34. Bxc1 Qe6) 32. Bg2 {[%emt 0:01:34] [#]} (32. Qf4 $11) 32... d4 $1 $17 {[%emt 0:01:57][%cal Bd5d4,Bd4c3][%mdl 32]} 33. Qf4 {[%emt 0:01:13]} Bxg2+ {[%emt 0:01:24]} 34. Kxg2 {[%emt 0:00:05]} Nc3 $36 {[%emt 0:01:13][%mdl 2048] White must now prevent ...Ne2. Black is on the roll.} 35. Bxc3 {[%emt 0:01:09]} (35. Rf2 $17) 35... dxc3 $19 {[%emt 0:01:51]} ({Inferior is} 35... bxc3 36. Kh2 $17) 36. d4 {[%emt 0:00:39]} Rc6 $2 {[%emt 0:02:31]} (36... a4 $19 37. h5 axb3 38. axb3 Qxb3) 37. Kh2 {[%emt 0:01:07] [#]} (37. Qe4 $11 {and White is okay.}) 37... a4 $1 {[%emt 0:00:29]} 38. bxa4 {[%emt 0:01:29]} (38. Ne3) 38... Qxa2+ {[%emt 0:00:15]} 39. Kg1 {[%emt 0:00:19]} Qd5 {[%emt 0:00:50]} (39... Qxa4 $2 {loses.} 40. e6 Rxe6 41. Nh6+ gxh6 42. Qxf7+ Kh8 43. Qxe6 $17) 40. Rce1 {[%emt 0:01:16]} (40. Ne3 {was the only chance.} Qe6 41. Qe4) 40... g6 {[%emt 0:03:27]} 41. Nd6 {[%emt 0:00:29]} Rcxd6 {[%emt 0:00:25]} 42. exd6 {[%emt 0:00:10]} Bxd6 {[%emt 0:00:36]} (42... Rxd6 $2 {too greedy.} 43. Rc1 $19) 43. Qf6 {[%emt 0:00:26]} (43. Qf3 $142 Qxd4+ 44. Kg2) 43... Bf8 {[%emt 0:00:35][%cal Bd6f8,Bf8g7,Bg7d4][%mdl 32] Hoping for ...c2.} 44. Rd1 {[%emt 0:00:45]} Bg7 {[%emt 0:00:40]} 45. Qa6 {[%emt 0:00:32]} Bxd4+ {[%emt 0:00:45]} 46. Kh2 {[%emt 0:00:08]} Qe5+ {[%emt 0:01:01] White is weak on the dark squares} (46... c2 $142 47. Rde1 Be5+ 48. Kg1 Qd4+ 49. Rf2 Bg3 {[%mdl 64] Pin} 50. Qf6 Bxf2+ 51. Qxf2 Qxf2+ 52. Kxf2 b3 53. Re4 c1=Q 54. h5 b2 55. hxg6 hxg6 56. Re1 Rd3 57. Ke2 Re3+ 58. Kf2 Qxe1+ 59. Kg2 Rg3+ 60. Kh2 Qg1#) 47. Kh1 {[%emt 0:00:24]} Qe4+ {[%emt 0:00:16] Black mates.} 48. Kh2 {[%emt 0:00:12]} Qxh4+ {[%emt 0:00:02]} 49. Kg2 {[%emt 0:00:22]} Qxg5+ {[%emt 0:00:16]} 50. Kh2 {[%emt 0:00:25]} Be5+ {[%emt 0:00:27]} 51. Kh1 {[%emt 0:00:06]} Qh4+ {[%emt 0:00:22]} 52. Kg2 {[%emt 0:00:18]} Qg3+ {[%emt 0:00:17]} 53. Kh1 {[%emt 0:00:02] Never resign too early! A fantastic game!   Weighted Error Value: White=1.09/Black=0.63} 0-1

[Event "Czech Youth Championship Open 2023"]
[Site "Teplice"]
[Date "2023.03.11"]
[Round "1.4"]
[White "Zednicek, Filip"]
[Black "Pavlis, Matej"]
[Result "1/2-1/2"]
[ECO "B22"]
[WhiteElo "1885"]
[BlackElo "1868"]
[Annotator "NA RC COMBH"]
[PlyCount "25"]
[EventDate "2023.03.09"]
[EventType "swiss"]
[EventCountry "CZE"]
[SourceTitle "playchess.com"]
[Source "ChessBase"]
[SourceQuality "1"]
[TimeControl "5400+30"]

1. e4 {[%emt 0:00:03]} c5 {[%emt 0:00:08]} 2. c3 {[%emt 0:00:05]} Nf6 {[%emt 0:00:08]} 3. e5 {[%emt 0:00:05]} Nd5 {[%emt 0:00:06]} 4. d4 {[%emt 0:00:07]} cxd4 {[%emt 0:00:44]} 5. cxd4 {[%emt 0:00:12]} d6 {[%emt 0:00:37]} 6. Nf3 {[%emt 0:01:28]} Nc6 {[%emt 0:00:53]} 7. Be2 {[%emt 0:01:22]} g6 {[%emt 0:02:50]} 8. Nc3 {[%emt 0:03:35]} Nxc3 {[%emt 0:06:30]} 9. bxc3 {[%emt 0:00:25]} Bg7 {[%emt 0:00:32]} 10. exd6 {[%emt 0:01:00]} Qxd6 {[%emt 0:00:06]} 11. Qb3 {[%emt 0:01:05]} O-O {[%emt 0:02:51]} 12. Ba3 {[%emt 0:00:23]} Qc7 {[%emt 0:01:42]} 13. Rb1 {[%emt 0:01:27]} 1/2-1/2

[Event "Czech Youth Championship Open 2023"]
[Site "Teplice"]
[Date "2023.03.12"]
[Round "2.1"]
[White "Broz, Petr"]
[Black "Pycha, Patrik"]
[Result "1/2-1/2"]
[ECO "B50"]
[WhiteElo "1993"]
[BlackElo "2029"]
[Annotator "TA"]
[PlyCount "43"]
[EventDate "2023.03.09"]
[EventType "swiss"]
[EventCountry "CZE"]
[SourceTitle "playchess.com"]
[Source "ChessBase"]
[SourceQuality "1"]
[TimeControl "5400+30"]

{[%evp 19,43,65,73,54,49,54,81,41,114,85,79,70,76,68,80,72,72,20,20,19,19,0,0,0,0,0]} 1. e4 {[%emt 0:00:07]} c5 {[%emt 0:00:20]} 2. Nf3 {[%emt 0:00:43]} d6 {[%emt 0:00:06]} 3. c4 {[%emt 0:00:21]} Nc6 {[%emt 0:01:28]} 4. d4 {[%emt 0:00:08]} cxd4 {[%emt 0:01:07]} 5. Nxd4 {[%emt 0:00:10]} Nf6 {[%emt 0:03:51]} 6. Nc3 {[%emt 0:00:20]} e6 {[%emt 0:05:08]} 7. Be3 {[%emt 0:01:16]} Be7 {[%emt 0:06:51]} 8. Be2 {[%emt 0:00:25]} O-O {[%emt 0:01:33]} 9. O-O {[%emt 0:01:04]} a6 {[%emt 0:05:34]} 10. Rc1 {[%emt 0:01:28]} Qc7 {[%emt 0:02:26] [#]} 11. Nd5 $1 {[%emt 0:00:58] White is more active. B54: Sicilian: 2...d6 3 d4 cxd4 4 Nxd4, Unusual Lines .} exd5 {[%emt 0:03:42]} 12. cxd5 {[%emt 0:00:03]} Nxe4 {[%emt 0:04:00][%cal Oe7f6]} 13. dxc6 {[%emt 0:00:14] [#] White is better.} d5 $146 {[%emt 0:08:36] Repels Bc4} (13... Bf6 $14) ({Predecessor:} 13... b5 14. Bf3 Nc5 15. Qc2 Bf6 16. Rfd1 Be5 17. h3 g6 18. Qd2 Ne6 19. Ne2 Re8 {1-0 Anata,C (2202)-Khan,N (1916) Dhaka Walton op 2021 (2)}) 14. cxb7 {[%emt 0:01:13]} (14. Qb3 {feels hotter.} bxc6 15. Nxc6 Be6 16. Qb6) 14... Qxb7 {[%emt 0:00:08] [#]} 15. Nc6 $1 {[%emt 0:01:24]} Be6 {[%emt 0:01:28]} 16. Nxe7+ {[%emt 0:00:06]} Qxe7 {[%emt 0:00:07]} 17. Qa4 {[%emt 0:11:10]} a5 {[%emt 0:03:01]} 18. Bf3 {[%emt 0:02:00] This pair of bishops is nice.} ({Better is} 18. f3 $16 Bd7 19. Qd4) 18... Qb4 $11 {[%emt 0:00:52] The position is equal.} 19. Qxb4 {[%emt 0:01:48]} axb4 {[%emt 0:00:07] [#]} 20. a3 $1 {[%emt 0:00:06]} bxa3 {[%emt 0:03:01]} 21. bxa3 {[%emt 0:00:03]} Ra4 {[%emt 0:03:27]} ({Don't play} 21... Rxa3 22. Bxe4 dxe4 23. Bc5 $16) 22. Bxe4 {[%emt 0:01:23] Weighted Error Value: White=0.16 (very precise) /Black=0.14 (very precise)} 1/2-1/2